Workbook

Sheet Tjek
C2: Satser pr. : 01-06-2013 til 01-03-2020 | I2: Slet indtastninger: Ctrl+q | AA2: 2013-03-01
B3: =VLOOKUP(C11,$C$61:$E$64,2,FALSE) ->  | C3: LØNTJEK | I3: OVERENSKOMST: KA Pleje | AA3: 2013-04-01
AA4: 2013-05-01
B5: =C17 -> 0 | AA5: 2013-06-01
C6: Måned, lønseddel | I6: Grundløn: | AA6: 2013-07-01
I7: grundløn | K7: =IFERROR(VLOOKUP(stilling,grundløn,VLOOKUP(C7,kolonne_nr,2,TRUE)+3,FALSE)/fuldtidsnorm*$C$22,0) -> 0 | AA7: 2013-08-01
C8: =IF(C7<>"",DATE(YEAR(C7),MONTH(C7)-1,DAY(C7)),"") ->  | I8: gruppetillæg | K8: =IFERROR(VLOOKUP(område,område_tillæg,VLOOKUP(C7,kolonne_nr,2,TRUE)+2,FALSE)/fuldtidsnorm*$C$22,0) -> 0 | AA8: 2013-09-01
AA9: 2013-10-01
C10: Stilling: | I10: Tillæg: | AA10: 2013-11-01
I11: personligt tillæg | K11: =J11 -> 0 | AA11: 2013-12-01
AA12: 2014-01-01
I13: anciennitetstillæg (antal år) | K13: =IFERROR(IF(modregning="",L13,IF(K11>=L13,0,L13-J11)),0) -> 0 | L13: =(VLOOKUP(J13,erfa_tillæg,VLOOKUP(C7,kolonne_nr,2,TRUE)+2,TRUE)/fuldtidsnorm*$C$22) ->  | AA13: 2014-02-01
AA14: 2014-03-01
I15: funktionstillæg, lokalt aftalt | K15: =J15 -> 0 | AA15: 2014-04-01
C16: Område/løngruppe: | I16: kvalifikationstill., lokalt aftalt | K16: =J16 -> 0 | AA16: 2014-05-01
AA17: 2014-06-01
I18: fast månedsløn/personlig løn | K18: =SUM(K7:K16) -> 0 | AA18: 2014-07-01
I19: timeløn | K19: =IFERROR((K18/timetal*fuldtidsnorm)*12/1924,0) -> 0 | AA19: 2014-08-01
AA20: 2014-09-01
C21: Timetal (timer/uge jf. ansættelsesbrev): | I21: Særydelser: | AA21: 2014-10-01
I22: merarbejde/udbetalt afsp. | K22: =K19*J22 -> 0 | AA22: 2014-11-01
C23: ="(svarende til "&ROUND(timetal*52/12,2)&" løntimer/måned)" -> (svarende til 0 løntimer/måned) | I23: overarbejde | K23: =K19*(1+50%)*(CEILING(J23*2,1)/2) -> 0 | AA23: 2014-12-01
AA24: 2015-01-01
I25: timer; 18-06 | K25: =IFERROR((CEILING(J25*2,1)/2)*VLOOKUP(4,særydelser,VLOOKUP(C8,kolonne_nr,2,TRUE)+2,FALSE),0) -> 0 | AA25: 2015-02-01
I26: timer; lørdag 14-24 | K26: =IFERROR((CEILING(J26*2,1)/2)*VLOOKUP(5,særydelser,VLOOKUP(C8,kolonne_nr,2,TRUE)+2,FALSE),0) -> 0 | AA26: 2015-03-01
I27: timer; søn- og helligdag | K27: =IFERROR((K19*VLOOKUP(6,særydelser,VLOOKUP(C8,kolonne_nr,2,TRUE)+2,FALSE))*(CEILING(J27*2,1)/2),0) -> 0 | AA27: 2015-04-01
AA28: 2015-05-01
I29: delt tjeneste | K29: =IFERROR((CEILING(J29,1))*VLOOKUP(1,særydelser,VLOOKUP(C8,kolonne_nr,2,TRUE)+2,FALSE),0) -> 0 | AA29: 2015-06-01
I30: omlagt tjeneste | K30: =IFERROR((CEILING(J30*2,1)/2)*VLOOKUP(2,særydelser,VLOOKUP(C8,kolonne_nr,2,TRUE)+2,FALSE),0) -> 0 | AA30: 2015-07-01
I31: inddraget fridøgn | K31: =IFERROR((CEILING(J31,1))*VLOOKUP(3,særydelser,VLOOKUP(C8,kolonne_nr,2,TRUE)+2,FALSE),0) -> 0 | AA31: 2015-08-01
K32: =J32*omlagt ->  | AA32: 2015-09-01
I33: rådighedsvagt (bolig) | K33: =IFERROR(J33*VLOOKUP(7,særydelser,VLOOKUP(C8,kolonne_nr,2,TRUE)+2,FALSE),0) -> 0 | AA33: 2015-10-01
I34: standby vagt | K34: =IFERROR(J34*VLOOKUP(8,særydelser,VLOOKUP(C8,kolonne_nr,2,TRUE)+2,FALSE),0) -> 0 | AA34: 2015-11-01
K35: =J35*rådighed_vagtv*K19 ->  | AA35: 2015-12-01
AA36: 2016-01-01
I37: Beklædningsgodtg. (vask) | K37: =IF(G37<>"",timetal*52/12*VLOOKUP(9,særydelser,VLOOKUP(C8,kolonne_nr,2,TRUE)+2,FALSE),0) -> 0 | AA37: 2016-02-01
I38: Beklædningsgodtg. (vask og tøj) | K38: =IF(G38<>"",timetal*52/12*VLOOKUP(10,særydelser,VLOOKUP(C8,kolonne_nr,2,TRUE)+2,FALSE),0) -> 0 | AA38: 2016-03-01
K39: =IFERROR(VLOOKUP(stilling,løndele,25,FALSE)*J39*timetal,0) -> 0 | AA39: 2016-04-01
AA40: 2016-05-01
AA41: 2016-06-01
AA42: 2016-07-01
AA43: 2016-08-01
I44: Pensionsgivende løn | K44: =SUM(K18,K22:K23,K25:K27,K29:K30,K33:K34,K37:K38) -> 0 | AA44: 2016-09-01
AA45: 2016-10-01
I46: FALSE | J46: =IF(I46=TRUE,12.3%,"") ->  | K46: =IFERROR(J46*K44,0) -> 0 | AA46: 2016-11-01
J47: =IFERROR(J46/3,"") ->  | K47: =IFERROR(J47*$K$44,0) -> 0 | AA47: 2016-12-01
I48: pensionsbidrag, arbejdsgiver | J48: =IFERROR(J46/3*2,"") ->  | K48: =IFERROR(J48*$K$44,0) -> 0 | AA48: 2017-01-01
AA49: 2017-02-01
AA50: 2017-03-01
AA51: 2017-04-01
AA52: 2017-05-01
AA53: 2017-06-01
AA54: 2017-07-01
C55: 0 | AA55: 2017-08-01
C56: 1 | AA56: 2017-09-01
C57: 2 | AA57: 2017-10-01
C58: 3 | AA58: 2017-11-01
C59: 4 | AA59: 2017-12-01
AA60: 2018-01-01
C61: Ikke-uddannede, husassist., servicemedarb. | D61: 1 | AA61: 2018-02-01
C62: Hjemmehjælpere | D62: 2 | AA62: 2018-03-01
C63: Social- og sundhedshj., sygehj. m.fl. | D63: 3 | AA63: 2018-04-01
C64: Social- og sundhedsass., plejehj.ass., plejere | D64: 4 | AA64: 2018-05-01
AA65: 2018-06-01
AA66: 2018-07-01
AA67: 2018-08-01
AA68: 2018-09-01
AA69: 2018-10-01
AA70: 2018-11-01
AA71: 2018-12-01
AA72: 2019-01-01
AA73: 2019-02-01
AA74: 2019-03-01
AA75: 2019-04-01
AA76: 2019-05-01
AA77: 2019-06-01
AA78: 2019-07-01
AA79: 2019-08-01
AA80: 2019-09-01
AA81: 2019-10-01
AA82: 2019-11-01
AA83: 2019-12-01
AA84: 2020-01-01
AA85: 2020-02-01

Sheet Gl_Satser (hidden)
C1: §5, 1 | D1: §5a, 2 | E1: §5a, 2 | F1: §5b | G1: §7, 1 | H1: §7, 1 | I1: §9 | K1: § 20, 2 | L1: § 23, 3 | M1: § 25, 1 | N1: § 25, 2 | O1: § 25, 3 | P1: § 26, 2 | R1: § 27, 2 | X1: § 14 | Y1: § 14
A2: 1 | B2: 2 | C2: 3 | D2: 4 | E2: 5 | F2: 6 | G2: 7 | H2: 8 | I2: 9 | J2: 10 | K2: 11 | L2: 12 | M2: 13 | N2: 14 | O2: 15 | P2: 16 | Q2: 17 | R2: 18 | S2: 19 | T2: 20 | U2: 21 | V2: 22 | W2: 23 | X2: 24 | Y2: 25 | Z2: 26 | AA2: 27 | AB2: 28
B3: 2013-03-01 | C3: Grundløn | D3: Grundløn | E3: Grundløn | F3: servicetill. | I3: Særlig opsp. | J3: delt tjeneste | K3: omlagte timer | L3: inddraget | N3: lø | P3: Rådighed | R3: stand-by | X3: Beklædningsgodtgørelse
D4: gr. 1 og 2 | E4: gr. 3 og 4 | L4: fridøgn | M4: 18-06 | N4: 14-24 | O4: sø/hell. | P4: bopæl | X4: vask | Y4: vask og tøj
A5: 1 | B5: Ikke-uddannede, husass., servicemedarb | C5: 20098.28 | D5: 512 | E5: 1025 | J5: 41.41 | K5: 43.48 | L5: 358.21 | M5: 35.55 | N5: 35.2 | O5: 0.5 | P5: 33.46 | R5: 18.83 | X5: 0.9 | Y5: 2.07
A6: 2 | B6: Hjemmehjælpere | C6: 21162.25
A7: 3 | B7: SSHJ, sygehj. m.fl. | C7: 21666.18
A8: 4 | B8: SSA, plejehj.ass., plejere | C8: 22562.85
A10: § 5, 2 | B10: Områdetillæg
A11: 0 | B11: 0 | D11: fuld tid, månedsnorm
A12: 1 | B12: 512 | D12: =37 -> 37
A13: 2 | B13: 512
A14: 3 | B14: 1025
A15: 4 | B15: 1025 | G15: Grundløn
G16: 2012-06-01 | H16: 2013-06-01 | I16: 2013-06-01 | J16: 41.41 | K16: 43.48 | L16: 358.21 | M16: 35.91 | N16: 35.2 | O16: 0.5 | P16: 33.8 | R16: 19.01 | X16: 0.9 | Y16: 2.07
A17: § 7, 1-2 | B17: erfaringstillæg | F17: Ikke-uddannede, husass., servicemedarb | G17: 19899.29 | H17: 20098.28 | I17: 2012-06-01 | J17: 41.41 | K17: 43.48 | L17: 358.21 | M17: 35.55 | N17: 35.2 | O17: 0.5 | P17: 33.46 | R17: 18.83 | X17: 0.9 | Y17: 2.07
A18: 0 | B18: 0 | F18: Hjemmehjælpere | G18: 20952.72 | H18: 21162.25
A19: 1 | B19: 0 | F19: SSHJ, sygehj. m.fl. | G19: 21451.66 | H19: 21666.18
A20: 2 | B20: 0 | F20: SSA, plejehj.ass., plejere | G20: 22339.45 | H20: 22562.85
A21: 3 | B21: 1060
A22: 4 | B22: 1060 | G22: =C8+E5 -> 23587.85
A23: 5 | B23: 1060 | F23: 21785.14 | G23: =160.33/G22*F23 -> 148.0767215
A24: 6 | B24: 1660
A25: 7 | B25: 1660
A26: 8 | B26: 1660
A29: § 15, 2+5+7 | B29: pension | C29: arbejdsgiverbidrag | H29: =37/23364.45*21785.14 -> 34.49900083
B30: egetbidrag | C30: inkl. sundhedsbidrag
A31: =A33/3 -> 0.041 | B31: =A31/3 -> 0.01366666667 | C31: =A31/3*2 -> 0.02733333333
A32: =A33/3*2 -> 0.082 | B32: 0.02733333333 | C32: 0.05466666667
A33: 0.123 | B33: =A33/3 -> 0.041 | C33: =A33/3*2 -> 0.082

Sheet Satser (hidden)
H1: 1 | I1: 2 | J1: 3 | K1: 4 | L1: 5 | M1: 6 | N1: 7
A2: fuld tid, månedsnorm | G2: 2012-06-01 | H2: 2013-06-01 | I2: 2014-06-01 | J2: 2015-06-01 | K2: 2016-06-01 | L2: 2017-06-01 | M2: 2018-06-01 | N2: 2019-06-01
A3: 37
I4: 0.015 | J4: 0.016 | K4: 0.017
A5: Kolonnenummer: | D5: § 19,3 | E5: Delt tjeneste | F5: 1 | G5: 41.41 | H5: 41.41 | I5: =H5*(1+I$4) -> 42.03115 | J5: =I5*(1+J$4) -> 42.7036484 | K5: 43.42961042 | L5: 44.12 | M5: 44.83 | N5: 45.55
A6: 2012-06-01 | B6: 0 | D6: § 20,2 | E6: omlagte timer | F6: 2 | G6: 43.48 | H6: 43.48 | I6: =H6*(1+I$4) -> 44.1322 | J6: 44.8383152 | K6: 45.60056656 | L6: 46.33 | M6: 47.07 | N6: 47.82
A7: 2013-06-01 | B7: 1 | D7: § 23,3 | E7: inddraget fridøgn | F7: 3 | G7: 358.21 | H7: 358.21 | I7: =H7*(1+I$4) -> 363.58315 | J7: 369.4004804 | K7: 375.6802886 | L7: 381.69 | M7: 387.8 | N7: 394
A8: 2014-06-01 | B8: 2 | D8: § 25, 1 | E8: 18-07 | F8: 4 | G8: 35.55 | H8: 35.91 | I8: =H8*(1+I$4) -> 36.44865 | J8: 37.0318284 | K8: 37.66136948 | L8: 38.26 | M8: 38.87 | N8: 39.49
A9: 2015-06-01 | B9: 3 | D9: § 25, 2 | E9: lø/14-24 | F9: 5 | G9: 35.2 | H9: 35.2 | I9: =H9*(1+I$4) -> 35.728 | J9: 36.299648 | K9: 36.91674202 | L9: 37.51 | M9: 38.11 | N9: 38.72
A10: 2016-06-01 | B10: 4 | D10: § 25, 3 | E10: sø/hell. | F10: 6 | G10: 0.5 | H10: 0.5 | I10: 0.5 | J10: 0.5 | K10: 0.5 | L10: 0.5 | M10: 0.5 | N10: 0.5
A11: 2017-06-01 | B11: 5 | D11: § 26,2 | E11: Rådighed, fra bopæl | F11: 7 | G11: 33.46 | H11: 33.8 | I11: =H11*(1+I$4) -> 34.307 | J11: 34.855912 | K11: 35.4484625 | L11: 36.02 | M11: 36.6 | N11: 37.19
A12: 2018-06-01 | B12: 6 | D12: § 27,2 | E12: Standby-vagt | F12: 8 | G12: 18.83 | H12: 19.01 | I12: =H12*(1+I$4) -> 19.29515 | J12: 19.6038724 | K12: 19.93713823 | L12: 20.26 | M12: 20.58 | N12: 20.91
A13: 2019-06-01 | B13: 7 | D13: §14 | E13: Bekl.godtg./vask | F13: 9 | G13: 0.9 | H13: 0.9 | I13: 0.9 | J13: 0.9 | K13: 0.9 | L13: 0.9 | M13: 0.9 | N13: 0.9
D14: §25 | E14: Bekl.godtg./vask og tøj | F14: 10 | G14: 2.07 | H14: 2.07 | I14: 2.07 | J14: 2.07 | K14: 2.07 | L14: 2.07 | M14: 2.07 | N14: 2.07
D16: §5, 1 | E16: Grundløn | I16: 320.66 | J16: 400.83 | K16: 505.04
E17: Ikke-uddannede, husassist., servicemedarb. | H17: 20098.28 | I17: =H17+I$16 -> 20418.94 | J17: =I17+J$16 -> 20819.77 | K17: 21324.81 | L17: 21725.64 | M17: 22126.47 | N17: 22527.3
E18: Hjemmehjælpere | H18: 21162.25 | I18: =H18+I$16 -> 21482.91 | J18: 21883.74 | K18: 22388.78 | L18: 22789.61 | M18: 23190.44 | N18: 23591.27
E19: Social- og sundhedshj., sygehj. m.fl. | H19: 21666.18 | I19: 21986.84 | J19: 22387.67 | K19: 22892.71 | L19: 23293.54 | M19: 23694.37 | N19: 24095.2
E20: Social- og sundhedsass., plejehj.ass., plejere | H20: 22562.85 | I20: 22883.51 | J20: 23284.34 | K20: 23789.38 | L20: 24430.71 | M20: 25031.95 | N20: 25673.28
D22: § 5, 2 | E22: Områdetillæg
F23: 0 | H23: 0 | I23: 0 | J23: 0 | K23: 0 | L23: 0 | M23: 0 | N23: 0
F24: 1 | H24: 512 | I24: 512 | J24: 512 | K24: 512 | L24: 512 | M24: 512 | N24: 512
F25: 2 | H25: 512 | I25: 512 | J25: 512 | K25: 512 | L25: 512 | M25: 512 | N25: 512
F26: 3 | H26: 1025 | I26: 1025 | J26: 1025 | K26: 1025 | L26: 1025 | M26: 1025 | N26: 1025
F27: 4 | H27: 1025 | I27: 1025 | J27: 1025 | K27: 1025 | L27: 1025 | M27: 1025 | N27: 1025
D29: § 7, 1-2 | E29: erfaringstillæg,
F30: 0 | H30: 0 | I30: 0 | J30: 0 | K30: 0 | L30: 0 | M30: 0 | N30: 0
F31: 1 | H31: 0 | I31: 0 | J31: 0 | K31: 0 | L31: 0 | M31: 0 | N31: 0
F32: 2 | H32: 0 | I32: 0 | J32: 0 | K32: 0 | L32: 0 | M32: 0 | N32: 0
F33: 3 | H33: 1060 | I33: 1060 | J33: 1060 | K33: 1060 | L33: 1060 | M33: 1060 | N33: 1060
F34: 4 | H34: 1060 | I34: 1060 | J34: 1060 | K34: 1060 | L34: 1060 | M34: 1060 | N34: 1060
F35: 5 | H35: 1060 | I35: 1060 | J35: 1060 | K35: 1060 | L35: 1060 | M35: 1060 | N35: 1060
F36: 6 | H36: 1660 | I36: 1660 | J36: 1660 | K36: 1660 | L36: 1660 | M36: 1660 | N36: 1660
F37: 7 | H37: 1660 | I37: 1660 | J37: 1660 | K37: 1660 | L37: 1660 | M37: 1660 | N37: 1660
F38: 8 | H38: 1660 | I38: 1660 | J38: 1660 | K38: 1660 | L38: 1660 | M38: 1660 | N38: 1660

Sheet kommuner_afd (hidden)
A1: k.nr. | B1: k.navn | C1: løngruppe | D1: afd | E1: Kommune | F1: Region
A2: 165 | B2: Albertslund | C2: 4 | D2: FOA/PMF afd. 4 | E2: 165 | F2: 1 | H2: Ikke-uddannede, husass., servicemedarb | I2: 1
A3: 201 | B3: Allerød | C3: 3 | D3: FOA Nordsjælland | E3: 201 | F3: 1 | H3: Hjemmehjælpere | I3: 2
A4: 420 | B4: Assens | C4: 0 | D4: FOA/PMF Fyns amt | E4: 420 | F4: 3 | H4: SSHJ, sygehj. m.fl. | I4: 3
A5: 151 | B5: Ballerup | C5: 4 | D5: FOA/PMF afd. 1 | E5: 151 | F5: 1 | H5: SSA, plejehj.ass., plejere | I5: 4
A6: 530 | B6: Billund | C6: 0 | D6: FOA Varde | E6: 530 | F6: 3
A7: 400 | B7: Bornholm | C7: 0 | D7: FOA Bornholm | E7: 400 | F7: 1
A8: 153 | B8: Brøndby | C8: 4 | D8: FOA/PMF Københavns amt Syd | E8: 153 | F8: 1
A9: 810 | B9: Brønderslev-Dronninglund | C9: 0 | D9: FOA/PMF Vendsyssel | E9: 810 | F9: 5
A10: 155 | B10: Dragør | C10: 4 | D10: FOA/PMF Københavns amt Syd | E10: 155 | F10: 1
A11: 240 | B11: Egedal | C11: 4 | D11: FOA Frederiskssund | E11: 240 | F11: 1
A12: 561 | B12: Esbjerg | C12: 1 | D12: FOA Esbjerg | E12: 561 | F12: 3
A13: 563 | B13: Fanø | C13: 0 | D13: FOA Esbjerg | E13: 563 | F13: 3
A14: 710 | B14: Favrskov | C14: 0 | D14: FOA Randers | E14: 710 | F14: 4
A15: 320 | B15: Faxe | C15: 0 | D15: FOA Sydsjælland | E15: 320 | F15: 2
A16: 210 | B16: Fredensborg | C16: 3 | D16: FOA Nordsjælland | E16: 210 | F16: 1
A17: 607 | B17: Fredericia | C17: 0 | D17: FOA Lillebælt | E17: 607 | F17: 3
A18: 147 | B18: Frederiksberg | C18: 4 | D18: LFS | E18: 147 | F18: 1
A19: 813 | B19: Frederikshavn | C19: 1 | D19: FOA/PMF Vendsyssel | E19: 813 | F19: 5
A20: 250 | B20: Frederikssund | C20: 3 | D20: FOA Frederiskssund | E20: 250 | F20: 1
A21: 190 | B21: Furesø | C21: 4 | D21: FOA/PMF afd. 1 | E21: 190 | F21: 1
A22: 430 | B22: Faaborg-Midtfyn | C22: 1 | D22: FOA/PMF Fyns amt | E22: 430 | F22: 3
A23: 157 | B23: Gentofte | C23: 4 | D23: FOA/PMF afd. 1 | E23: 157 | F23: 1
A24: 159 | B24: Gladsaxe | C24: 4 | D24: FOA/PMF afd. 1 | E24: 159 | F24: 1
A25: 161 | B25: Glostrup | C25: 4 | D25: FOA/PMF Københavns amt Syd | E25: 161 | F25: 1
A26: 253 | B26: Greve | C26: 4 | D26: FOA Roskilde | E26: 253 | F26: 2
A27: 270 | B27: Gribskov | C27: 3 | D27: FOA Nordsjælland | E27: 270 | F27: 1
A28: 376 | B28: Guldborgsund | C28: 0 | D28: FOA Nykøbing F. | E28: 376 | F28: 2
A29: 510 | B29: Haderslev | C29: 0 | D29: FOA Sønderjylland | E29: 510 | F29: 3
A30: 260 | B30: Halsnæs | C30: 3 | D30: FOA Frederiskssund | E30: 260 | F30: 1
A31: 766 | B31: Hedensted | C31: 0 | D31: FOA Horsens | E31: 766 | F31: 4
A32: 217 | B32: Helsingør | C32: 3 | D32: FOA Nordsjælland | E32: 217 | F32: 1
A33: 163 | B33: Herlev | C33: 4 | D33: FOA/PMF afd. 1 | E33: 163 | F33: 1
A34: 657 | B34: Herning | C34: 0 | D34: FOA Herning | E34: 657 | F34: 4
A35: 219 | B35: Hillerød | C35: 3 | D35: FOA Nordsjælland | E35: 219 | F35: 1
A36: 860 | B36: Hjørring | C36: 0 | D36: FOA/PMF Vendsyssel | E36: 860 | F36: 5
A37: 316 | B37: Holbæk | C37: 0 | D37: FOA Holbæk | E37: 316 | F37: 2
A38: 661 | B38: Holstebro | C38: 0 | D38: FOA Holstebro | E38: 661 | F38: 4
A39: 615 | B39: Horsens | C39: 0 | D39: FOA Horsens | E39: 615 | F39: 4
A40: 167 | B40: Hvidovre | C40: 4 | D40: FOA/PMF Københavns amt Syd | E40: 167 | F40: 1
A41: 169 | B41: Høje-Taastrup | C41: 4 | D41: FOA/PMF afd. 4 | E41: 169 | F41: 1
A42: 223 | B42: Hørsholm | C42: 3 | D42: FOA Nordsjælland | E42: 223 | F42: 1
A43: 756 | B43: Ikast-Brande | C43: 0 | D43: FOA Herning | E43: 756 | F43: 4
A44: 183 | B44: Ishøj | C44: 4 | D44: FOA/PMF afd. 4 | E44: 183 | F44: 1
A45: 849 | B45: Jammerbugt | C45: 0 | D45: FOA/PMF Vendsyssel | E45: 849 | F45: 5
A46: 326 | B46: Kalundborg | C46: 1 | D46: FOA Nordvestsjælland | E46: 326 | F46: 2
A47: 440 | B47: Kerteminde | C47: 1 | D47: FOA/PMF Fyns amt | E47: 440 | F47: 3
A48: 621 | B48: Kolding | C48: 0 | D48: FOA Kolding | E48: 621 | F48: 3
A49: 101 | B49: København | C49: 4 | D49: LFS | E49: 101 | F49: 1
A50: 259 | B50: Køge | C50: 2 | D50: FOA Køge | E50: 259 | F50: 2
A51: 482 | B51: Langeland | C51: 0 | D51: FOA/PMF Fyns amt | E51: 482 | F51: 3
A52: 350 | B52: Lejre | C52: 2 | D52: FOA Roskilde | E52: 350 | F52: 2
A53: 665 | B53: Lemvig | C53: 0 | D53: FOA Holstebro | E53: 665 | F53: 4
A54: 360 | B54: Lolland | C54: 0 | D54: FOA Lolland | E54: 360 | F54: 2
A55: 173 | B55: Lyngby-Taarbæk | C55: 4 | D55: FOA/PMF afd. 1 | E55: 173 | F55: 1
A56: 825 | B56: Læsø | C56: 0 | D56: FOA/PMF Vendsyssel | E56: 825 | F56: 5
A57: 846 | B57: Mariagerfjord | C57: 0 | D57: FOA Hobro | E57: 846 | F57: 5
A58: 410 | B58: Middelfart | C58: 0 | D58: FOA/PMF Fyns amt | E58: 410 | F58: 3
A59: 773 | B59: Morsø | C59: 0 | D59: FOA Thisted-Morsø | E59: 773 | F59: 5
A60: 707 | B60: Norddjurs | C60: 0 | D60: FOA Randers | E60: 707 | F60: 4
A61: 480 | B61: Nordfyn | C61: 0 | D61: FOA/PMF Fyns amt | E61: 480 | F61: 3
A62: 450 | B62: Nyborg | C62: 1 | D62: FOA/PMF Fyns amt | E62: 450 | F62: 3
A63: 370 | B63: Næstved | C63: 1 | D63: FOA Sydsjælland | E63: 370 | F63: 2
A64: 727 | B64: Odder | C64: 0 | D64: FOA Århus | E64: 727 | F64: 4
A65: 461 | B65: Odense | C65: 1 | D65: FOA/PMF Fyns amt | E65: 461 | F65: 3
A66: 306 | B66: Odsherred | C66: 0 | D66: FOA Nordvestsjælland | E66: 306 | F66: 2
A67: 730 | B67: Randers | C67: 0 | D67: FOA Randers | E67: 730 | F67: 4
A68: 840 | B68: Rebild | C68: 0 | D68: FOA Aalborg | E68: 840 | F68: 5
A69: 760 | B69: Ringkøbing-Skjern | C69: 0 | D69: FOA Herning | E69: 760 | F69: 4
A70: 329 | B70: Ringsted | C70: 0 | D70: FOA Midtsjælland | E70: 329 | F70: 2
A71: 265 | B71: Roskilde | C71: 2 | D71: FOA Roskilde | E71: 265 | F71: 2
A72: 230 | B72: Rudersdal | C72: 4 | D72: FOA Nordsjælland | E72: 230 | F72: 1
A73: 175 | B73: Rødovre | C73: 4 | D73: FOA/PMF Københavns amt Syd | E73: 175 | F73: 1
A74: 741 | B74: Samsø | C74: 0 | D74: FOA Århus | E74: 741 | F74: 4
A75: 740 | B75: Silkeborg | C75: 0 | D75: FOA Silkeborg-Skanderborg | E75: 740 | F75: 4
A76: 746 | B76: Skanderborg | C76: 1 | D76: FOA Silkeborg-Skanderborg | E76: 746 | F76: 4
A77: 779 | B77: Skive | C77: 0 | D77: FOA Skive | E77: 779 | F77: 4
A78: 330 | B78: Slagelse | C78: 1 | D78: FOA Midtsjælland | E78: 330 | F78: 2
A79: 269 | B79: Solrød | C79: 2 | D79: FOA Køge | E79: 269 | F79: 2
A80: 340 | B80: Sorø | C80: 0 | D80: FOA Midtsjælland | E80: 340 | F80: 2
A81: 336 | B81: Stevns | C81: 0 | D81: FOA Køge | E81: 336 | F81: 2
A82: 671 | B82: Struer | C82: 0 | D82: FOA Holstebro | E82: 671 | F82: 4
A83: 479 | B83: Svendborg | C83: 0 | D83: FOA/PMF Fyns amt | E83: 479 | F83: 3
A84: 706 | B84: Syddjurs | C84: 0 | D84: FOA Randers | E84: 706 | F84: 4
A85: 540 | B85: Sønderborg | C85: 1 | D85: FOA Sønderborg | E85: 540 | F85: 3
A86: 787 | B86: Thisted | C86: 0 | D86: FOA Thisted-Morsø | E86: 787 | F86: 5
A87: 550 | B87: Tønder | C87: 0 | D87: FOA Sønderjylland | E87: 550 | F87: 3
A88: 185 | B88: Tårnby | C88: 4 | D88: FOA/PMF Københavns amt Syd | E88: 185 | F88: 1
A89: 187 | B89: Vallensbæk | C89: 4 | D89: FOA/PMF afd. 4 | E89: 187 | F89: 1
A90: 573 | B90: Varde | C90: 0 | D90: FOA Varde | E90: 573 | F90: 3
A91: 575 | B91: Vejen | C91: 0 | D91: FOA Esbjerg | E91: 575 | F91: 3
A92: 630 | B92: Vejle | C92: 0 | D92: FOA Vejle | E92: 630 | F92: 3
A93: 820 | B93: Vesthimmerland | C93: 0 | D93: FOA Aalborg | E93: 820 | F93: 5
A94: 791 | B94: Viborg | C94: 0 | D94: FOA Viborg | E94: 791 | F94: 4
A95: 390 | B95: Vordingborg | C95: 0 | D95: FOA Sydsjælland | E95: 390 | F95: 2
A96: 492 | B96: Ærø | C96: 0 | D96: FOA/PMF Fyns amt | E96: 492 | F96: 3
A97: 580 | B97: Aabenraa | C97: 0 | D97: FOA Sønderjylland | E97: 580 | F97: 3
A98: 851 | B98: Ålborg | C98: 1 | D98: FOA Aalborg | E98: 851 | F98: 5
A99: 751 | B99: Århus | C99: 2 | D99: FOA Århus | E99: 751 | F99: 4

Sheet Ark3 (hidden)

Sheet Ark1 (hidden)
B2: normtimer | C2: arbejdstimer | D2: opsparing
A3: marts | B3: 138 | C3: 165.25 | D3: =C3-B3 -> 27.25 | H3: 21785.14 | I3: 21449.11
A4: april | B4: 124.2 | C4: 150.5 | D4: =C4-B4 -> 26.3 | H4: 170.91
A5: maj | B5: 138 | C5: 143.5 | D5: 5.5 | H5: 1185.9
A6: juni | B6: 144.9 | C6: 177 | D6: 32.1 | H6: 104.65
A7: juli | D7: 0 | H7: 11.62
B8: =SUM(B3:B7) -> 545.1 | C8: =SUM(C3:C7) -> 636.25 | H8: 1068.86
H9: 546.45
H10: -90
H11: =SUM(H3:H10) -> 24783.53
